[Event "Late-Titled-Tuesday-Blitz-February-13-2024"]
[Site "Chess.com"]
[Date "2024.02.13"]
[Round "1"]
[White "Rinqed222"]
[Black "Nouali_Mohamed"]
[Result "0-1"]
[WhiteElo "2214"]
[BlackElo "2572"]
[TimeControl "180+1"]
[EndTime "14:07:09 PST"]
[Termination "Nouali_Mohamed won on time"]

1. e4 {[%clk 0:03:00.9]} 1... c5 {[%clk 0:02:59.1]} 2. Nc3 {[%clk 0:03:00.7]}
2... Nc6 {[%clk 0:02:59.4]} 3. Bb5 {[%clk 0:03:00.6]} 3... g6 {[%clk 0:02:36.3]}
4. Bxc6 {[%clk 0:02:56.2]} 4... dxc6 {[%clk 0:02:34.9]} 5. d3 {[%clk 0:02:56]}
5... Bg7 {[%clk 0:02:29.3]} 6. f4 {[%clk 0:02:55.8]} 6... c4 {[%clk 0:02:03.9]}
7. Nf3 {[%clk 0:02:50.3]} 7... cxd3 {[%clk 0:02:02.5]} 8. cxd3 {[%clk
0:02:51.2]} 8... Nf6 {[%clk 0:02:02.1]} 9. O-O {[%clk 0:02:47.8]} 9... O-O
{[%clk 0:02:02.2]} 10. d4 {[%clk 0:02:30.8]} 10... Bg4 {[%clk 0:01:58]} 11. Be3
{[%clk 0:02:28.7]} 11... Qb6 {[%clk 0:01:49.4]} 12. Qd2 {[%clk 0:02:17.3]} 12...
Bxf3 {[%clk 0:01:45.2]} 13. gxf3 {[%clk 0:02:09.7]} 13... Rfd8 {[%clk
0:01:36.4]} 14. Qf2 {[%clk 0:02:02.8]} 14... Qa5 {[%clk 0:01:30.7]} 15. Rad1
{[%clk 0:01:50.3]} 15... e6 {[%clk 0:01:22.9]} 16. Kh1 {[%clk 0:01:35.2]} 16...
b5 {[%clk 0:01:15.8]} 17. a3 {[%clk 0:01:17.6]} 17... Nh5 {[%clk 0:01:14.2]} 18.
Rg1 {[%clk 0:01:09]} 18... Qc7 {[%clk 0:01:12.7]} 19. Ne2 {[%clk 0:01:03.6]}
19... c5 {[%clk 0:00:55.1]} 20. dxc5 {[%clk 0:00:31.7]} 20... Bxb2 {[%clk
0:00:56]} 21. Qh4 {[%clk 0:00:20]} 21... Rxd1 {[%clk 0:00:46.6]} 22. Rxd1 {[%clk
0:00:19.8]} 22... Bxa3 {[%clk 0:00:41.4]} 23. f5 {[%clk 0:00:15.5]} 23... exf5
{[%clk 0:00:42.3]} 24. exf5 {[%clk 0:00:15.3]} 24... Bxc5 {[%clk 0:00:37.3]} 25.
Rc1 {[%clk 0:00:15.4]} 25... Qb7 {[%clk 0:00:37.6]} 26. Bxc5 {[%clk 0:00:05.1]}
26... Qxf3+ {[%clk 0:00:36.8]} 27. Kg1 {[%clk 0:00:06]} 27... Qxe2 {[%clk
0:00:34.4]} 28. Re1 {[%clk 0:00:06.5]} 28... Qc4 {[%clk 0:00:29.3]} 29. Qe7
{[%clk 0:00:04.7]} 29... Qg4+ {[%clk 0:00:26.7]} 30. Kf2 {[%clk 0:00:02.9]}
30... Qxf5+ {[%clk 0:00:25.6]} 31. Kg1 {[%clk 0:00:03.3]} 31... Nf4 {[%clk
0:00:18.9]} 0-1

[Event "Late-Titled-Tuesday-Blitz-February-13-2024"]
[Site "Chess.com"]
[Date "2024.02.13"]
[Round "1"]
[White "DanylaBagrov"]
[Black "MikeSailer"]
[Result "1-0"]
[WhiteElo "2561"]
[BlackElo "2191"]
[TimeControl "180+1"]
[EndTime "14:07:11 PST"]
[Termination "DanylaBagrov won by checkmate"]

1. f4 {[%clk 0:02:59.4]} 1... d5 {[%clk 0:02:58.5]} 2. Nf3 {[%clk 0:02:56.6]}
2... g6 {[%clk 0:02:57.4]} 3. g3 {[%clk 0:02:47]} 3... Bg7 {[%clk 0:02:57.8]} 4.
Bg2 {[%clk 0:02:45.8]} 4... b6 {[%clk 0:02:58.2]} 5. O-O {[%clk 0:02:43.8]} 5...
Bb7 {[%clk 0:02:58.5]} 6. d3 {[%clk 0:02:43.9]} 6... c5 {[%clk 0:02:44.2]} 7. a4
{[%clk 0:02:43.5]} 7... Nc6 {[%clk 0:02:42.2]} 8. c3 {[%clk 0:02:42.2]} 8... Nf6
{[%clk 0:02:38.9]} 9. Na3 {[%clk 0:02:41.7]} 9... O-O {[%clk 0:02:36.4]} 10. Nc2
{[%clk 0:02:34.4]} 10... Qc7 {[%clk 0:02:35.5]} 11. Qe1 {[%clk 0:02:32.8]} 11...
Rae8 {[%clk 0:02:33.3]} 12. e4 {[%clk 0:02:19.3]} 12... dxe4 {[%clk 0:02:24.9]}
13. dxe4 {[%clk 0:02:20.2]} 13... e5 {[%clk 0:02:24.6]} 14. f5 {[%clk
0:02:16.9]} 14... Ba6 {[%clk 0:02:13.5]} 15. Rf2 {[%clk 0:02:15.3]} 15... Ng4
{[%clk 0:02:07.7]} 16. Rd2 {[%clk 0:02:10.5]} 16... Bh6 {[%clk 0:01:55]} 17. Rd5
{[%clk 0:02:08.2]} 17... Bxc1 {[%clk 0:01:46.5]} 18. Rxc1 {[%clk 0:02:09.1]}
18... Bc4 {[%clk 0:01:41.8]} 19. Rd2 {[%clk 0:01:55]} 19... Na5 {[%clk
0:01:39.6]} 20. h3 {[%clk 0:01:52.4]} 20... Nf6 {[%clk 0:01:29.9]} 21. Rf2
{[%clk 0:01:42.2]} 21... Nb3 {[%clk 0:01:27.6]} 22. Rd1 {[%clk 0:01:41.9]} 22...
Rd8 {[%clk 0:01:19.6]} 23. Ne3 {[%clk 0:01:40.5]} 23... Rxd1 {[%clk 0:01:15.9]}
24. Qxd1 {[%clk 0:01:41.4]} 24... Rd8 {[%clk 0:01:10.7]} 25. Qc2 {[%clk
0:01:41.6]} 25... Na5 {[%clk 0:00:58.9]} 26. fxg6 {[%clk 0:01:34.4]} 26... hxg6
{[%clk 0:00:54.6]} 27. Ng5 {[%clk 0:01:27.4]} 27... Bb3 {[%clk 0:00:44.8]} 28.
Qe2 {[%clk 0:01:24.9]} 28... Qd6 {[%clk 0:00:29.6]} 29. Nd5 {[%clk 0:01:07.1]}
29... Nxd5 {[%clk 0:00:25.6]} 30. exd5 {[%clk 0:01:08]} 30... f5 {[%clk
0:00:24.1]} 31. Qa6 {[%clk 0:01:00.4]} 31... Bxd5 {[%clk 0:00:19.8]} 32. Qxa7
{[%clk 0:00:58.4]} 32... Rd7 {[%clk 0:00:16]} 33. Bxd5+ {[%clk 0:00:57.8]} 33...
Qxd5 {[%clk 0:00:15.9]} 34. Qb8+ {[%clk 0:00:48.9]} 34... Kg7 {[%clk 0:00:16.4]}
35. Qxb6 {[%clk 0:00:39.6]} 35... Nc4 {[%clk 0:00:16.2]} 36. Qxc5 {[%clk
0:00:35.1]} 36... Qd1+ {[%clk 0:00:06.2]} 37. Kh2 {[%clk 0:00:34.6]} 37... Nd2
{[%clk 0:00:06.1]} 38. Qxe5+ {[%clk 0:00:31]} 38... Kh6 {[%clk 0:00:05.7]} 39.
Qh8+ {[%clk 0:00:29]} 39... Kxg5 {[%clk 0:00:05.1]} 40. Qh4# {[%clk 0:00:29.8]}
1-0

[Event "Late-Titled-Tuesday-Blitz-February-13-2024"]
[Site "Chess.com"]
[Date "2024.02.13"]
[Round "1"]
[White "Nf3c5"]
[Black "protectiago"]
[Result "1-0"]
[WhiteElo "2546"]
[BlackElo "2117"]
[TimeControl "180+1"]
[EndTime "14:07:11 PST"]
[Termination "Nf3c5 won by resignation"]

1. e4 {[%clk 0:02:59.4]} 1... c5 {[%clk 0:02:59.1]} 2. Nf3 {[%clk 0:02:57.4]}
2... Nc6 {[%clk 0:02:59.2]} 3. Nc3 {[%clk 0:02:52.9]} 3... d6 {[%clk 0:02:52.2]}
4. d4 {[%clk 0:02:50]} 4... cxd4 {[%clk 0:02:52.3]} 5. Nxd4 {[%clk 0:02:50.9]}
5... Nf6 {[%clk 0:02:52.3]} 6. Bc4 {[%clk 0:02:51]} 6... e6 {[%clk 0:02:51.9]}
7. Be3 {[%clk 0:02:49.8]} 7... Be7 {[%clk 0:02:51.1]} 8. Qe2 {[%clk 0:02:49.4]}
8... Nxd4 {[%clk 0:02:47.8]} 9. Bxd4 {[%clk 0:02:49]} 9... Bd7 {[%clk
0:02:47.6]} 10. Rg1 {[%clk 0:02:37.2]} 10... a6 {[%clk 0:02:46.8]} 11. g4 {[%clk
0:02:35.5]} 11... b5 {[%clk 0:02:42.9]} 12. Bb3 {[%clk 0:02:33.3]} 12... b4
{[%clk 0:02:38.9]} 13. Na4 {[%clk 0:02:16.7]} 13... Bb5 {[%clk 0:02:30.4]} 14.
Qe3 {[%clk 0:02:09.4]} 14... h5 {[%clk 0:02:20.7]} 15. gxh5 {[%clk 0:02:04]}
15... Rxh5 {[%clk 0:02:17]} 16. Rxg7 {[%clk 0:01:59.3]} 16... Rxh2 {[%clk
0:02:06.7]} 17. O-O-O {[%clk 0:01:56.5]} 17... Bf8 {[%clk 0:01:51.3]} 18. Rgg1
{[%clk 0:01:30.8]} 18... Nd7 {[%clk 0:01:27.8]} 19. Kb1 {[%clk 0:00:55.6]} 19...
Rc8 {[%clk 0:01:23.4]} 20. f4 {[%clk 0:00:42.9]} 20... Qh4 {[%clk 0:01:20.8]}
21. Nb6 {[%clk 0:00:33.4]} 21... Nxb6 {[%clk 0:01:09.4]} 22. Bxb6 {[%clk
0:00:34.3]} 22... Re2 {[%clk 0:01:01.8]} 23. Qf3 {[%clk 0:00:31.3]} 23... Qh2
{[%clk 0:00:48.5]} 24. Rc1 {[%clk 0:00:18.7]} 24... a5 {[%clk 0:00:44]} 25. f5
{[%clk 0:00:17.7]} 25... e5 {[%clk 0:00:37.7]} 26. Qg4 {[%clk 0:00:14.5]} 26...
Bc4 {[%clk 0:00:28.3]} 27. Ba4+ {[%clk 0:00:13.4]} 27... Ke7 {[%clk 0:00:24.2]}
28. f6+ {[%clk 0:00:13.7]} 28... Kxf6 {[%clk 0:00:21.8]} 29. Rcf1+ {[%clk
0:00:12.8]} 29... Rf2 {[%clk 0:00:17.1]} 30. Rxf2+ {[%clk 0:00:12.2]} 30... Qxf2
{[%clk 0:00:16.7]} 31. Bxf2 {[%clk 0:00:13.1]} 31... b3 {[%clk 0:00:15.4]} 32.
Qf5+ {[%clk 0:00:09.6]} 32... Ke7 {[%clk 0:00:14.8]} 33. Bh4+ {[%clk 0:00:10.3]}
33... f6 {[%clk 0:00:14.8]} 34. Bxf6+ {[%clk 0:00:08.4]} 1-0

[Event "Late-Titled-Tuesday-Blitz-February-13-2024"]
[Site "Chess.com"]
[Date "2024.02.13"]
[Round "1"]
[White "ChessLover0108"]
[Black "N_Mullodzhanov"]
[Result "1-0"]
[WhiteElo "2997"]
[BlackElo "2507"]
[TimeControl "180+1"]
[EndTime "14:07:15 PST"]
[Termination "ChessLover0108 won by checkmate"]

1. d4 {[%clk 0:03:00.9]} 1... Nf6 {[%clk 0:02:58.9]} 2. c4 {[%clk 0:03:00]} 2...
g6 {[%clk 0:02:58.9]} 3. Nc3 {[%clk 0:03:00]} 3... Bg7 {[%clk 0:02:59.2]} 4. e4
{[%clk 0:03:00.6]} 4... d6 {[%clk 0:02:59.6]} 5. Be2 {[%clk 0:03:01.1]} 5... O-O
{[%clk 0:02:59.9]} 6. Be3 {[%clk 0:03:01.8]} 6... e5 {[%clk 0:02:59.2]} 7. d5
{[%clk 0:03:02.4]} 7... Na6 {[%clk 0:02:58.8]} 8. Nf3 {[%clk 0:02:57.2]} 8...
Ng4 {[%clk 0:02:51.4]} 9. Bg5 {[%clk 0:02:57.2]} 9... f6 {[%clk 0:02:51.5]} 10.
Bh4 {[%clk 0:02:57.9]} 10... Qe8 {[%clk 0:02:27.8]} 11. Nd2 {[%clk 0:02:49.6]}
11... f5 {[%clk 0:02:27.6]} 12. O-O {[%clk 0:01:59.3]} 12... Bf6 {[%clk
0:02:20.3]} 13. Bg3 {[%clk 0:01:49.5]} 13... Nh6 {[%clk 0:02:03.7]} 14. f3
{[%clk 0:01:48.6]} 14... Nc5 {[%clk 0:01:53.7]} 15. b4 {[%clk 0:01:47.8]} 15...
Nd7 {[%clk 0:01:53.8]} 16. Rc1 {[%clk 0:01:43]} 16... a5 {[%clk 0:01:53.6]} 17.
c5 {[%clk 0:01:40.4]} 17... axb4 {[%clk 0:01:47.5]} 18. Nb5 {[%clk 0:01:40.1]}
18... Qe7 {[%clk 0:01:27.8]} 19. Nxc7 {[%clk 0:01:29.6]} 19... Rxa2 {[%clk
0:01:27.2]} 20. cxd6 {[%clk 0:01:22.7]} 20... Qxd6 {[%clk 0:01:28.1]} 21. Nb5
{[%clk 0:01:23.6]} 21... Qb6+ {[%clk 0:01:25.7]} 22. Bf2 {[%clk 0:01:24]} 22...
Qa5 {[%clk 0:01:15.9]} 23. Nd6 {[%clk 0:01:13.3]} 23... Qa8 {[%clk 0:01:07.4]}
24. Bc4 {[%clk 0:00:52.8]} 24... Ra3 {[%clk 0:00:54.9]} 25. Bb5 {[%clk
0:00:49.2]} 25... Rc3 {[%clk 0:00:51.8]} 26. Rxc3 {[%clk 0:00:45]} 26... bxc3
{[%clk 0:00:52]} 27. N2c4 {[%clk 0:00:45.9]} 27... Nf7 {[%clk 0:00:49.8]} 28.
Qb3 {[%clk 0:00:42.9]} 28... Be7 {[%clk 0:00:43.3]} 29. Nxf7 {[%clk 0:00:27]}
29... Rxf7 {[%clk 0:00:43.5]} 30. d6 {[%clk 0:00:26.7]} 30... Bf6 {[%clk
0:00:39.2]} 31. Qxc3 {[%clk 0:00:23.2]} 31... fxe4 {[%clk 0:00:38.5]} 32. fxe4
{[%clk 0:00:23.6]} 32... b6 {[%clk 0:00:36.6]} 33. Nxb6 {[%clk 0:00:22.8]} 33...
Nxb6 {[%clk 0:00:33.4]} 34. Bxb6 {[%clk 0:00:23.7]} 34... Kg7 {[%clk 0:00:24.3]}
35. Bc4 {[%clk 0:00:18.4]} 35... Rd7 {[%clk 0:00:15.6]} 36. Bd5 {[%clk
0:00:18.8]} 36... Qb8 {[%clk 0:00:12.3]} 37. Bc7 {[%clk 0:00:19.1]} 37... Qa7+
{[%clk 0:00:12.1]} 38. Kh1 {[%clk 0:00:19.6]} 38... Bb7 {[%clk 0:00:12.3]} 39.
Qf3 {[%clk 0:00:19.2]} 39... Bd8 {[%clk 0:00:07.6]} 40. Qf8# {[%clk 0:00:18.7]}
1-0

[Event "Late-Titled-Tuesday-Blitz-February-13-2024"]
[Site "Chess.com"]
[Date "2024.02.13"]
[Round "1"]
[White "Kiborg95"]
[Black "Valeron87"]
[Result "1-0"]
[WhiteElo "2840"]
[BlackElo "2442"]
[TimeControl "180+1"]
[EndTime "14:07:15 PST"]
[Termination "Kiborg95 won by checkmate"]

1. e4 {[%clk 0:02:54]} 1... c5 {[%clk 0:02:59.5]} 2. Nc3 {[%clk 0:02:53.3]} 2...
Nc6 {[%clk 0:02:59.4]} 3. Nge2 {[%clk 0:02:53.6]} 3... Nf6 {[%clk 0:02:57.3]} 4.
g3 {[%clk 0:02:53.2]} 4... d5 {[%clk 0:02:55.7]} 5. exd5 {[%clk 0:02:54.1]} 5...
Nxd5 {[%clk 0:02:56.1]} 6. Bg2 {[%clk 0:02:54.8]} 6... Nc7 {[%clk 0:02:39]} 7.
O-O {[%clk 0:02:42.2]} 7... Bg4 {[%clk 0:02:34.9]} 8. h3 {[%clk 0:02:41.9]} 8...
Bh5 {[%clk 0:02:32]} 9. g4 {[%clk 0:02:41.3]} 9... Bg6 {[%clk 0:02:32.3]} 10. f4
{[%clk 0:02:37.8]} 10... e6 {[%clk 0:02:27.6]} 11. Ng3 {[%clk 0:02:24.2]} 11...
Bd6 {[%clk 0:02:00.7]} 12. Qe1 {[%clk 0:02:03.9]} 12... Nd4 {[%clk 0:01:40.8]}
13. f5 {[%clk 0:02:03.1]} 13... Nxc2 {[%clk 0:01:38.4]} 14. Qf2 {[%clk
0:02:02.3]} 14... Bxg3 {[%clk 0:01:36.5]} 15. Qxg3 {[%clk 0:02:02.6]} 15... Nxa1
{[%clk 0:01:04.3]} 16. fxg6 {[%clk 0:02:00.7]} 16... hxg6 {[%clk 0:01:05.2]} 17.
Bxb7 {[%clk 0:01:25.5]} 17... Rb8 {[%clk 0:00:57.1]} 18. Bc6+ {[%clk 0:01:25.5]}
18... Kf8 {[%clk 0:00:54.8]} 19. d3 {[%clk 0:01:16.4]} 19... Rb6 {[%clk
0:00:47.5]} 20. Be4 {[%clk 0:01:16.6]} 20... Kg8 {[%clk 0:00:27.1]} 21. Bf4
{[%clk 0:01:12.1]} 21... Ne8 {[%clk 0:00:25]} 22. Rxa1 {[%clk 0:01:10.9]} 22...
Rxb2 {[%clk 0:00:22.3]} 23. Nd1 {[%clk 0:00:58]} 23... Rb4 {[%clk 0:00:18.5]}
24. Rc1 {[%clk 0:00:49]} 24... g5 {[%clk 0:00:15.1]} 25. Be3 {[%clk 0:00:46.3]}
25... Nf6 {[%clk 0:00:14.1]} 26. Bg2 {[%clk 0:00:42]} 26... Qxd3 {[%clk
0:00:11.8]} 27. Nf2 {[%clk 0:00:38]} 27... Qe2 {[%clk 0:00:10.6]} 28. Bxc5
{[%clk 0:00:29.5]} 28... Rb2 {[%clk 0:00:09.5]} 29. a3 {[%clk 0:00:23.9]} 29...
Rc2 {[%clk 0:00:09.2]} 30. Rxc2 {[%clk 0:00:19.6]} 30... Qxc2 {[%clk 0:00:10.1]}
31. Qe3 {[%clk 0:00:18.3]} 31... Rh6 {[%clk 0:00:07]} 32. Bxa7 {[%clk
0:00:16.7]} 32... Qb1+ {[%clk 0:00:05.8]} 33. Kh2 {[%clk 0:00:16.4]} 33... Nd5
{[%clk 0:00:05.2]} 34. Bxd5 {[%clk 0:00:15.1]} 34... exd5 {[%clk 0:00:06.1]} 35.
Bd4 {[%clk 0:00:15.5]} 35... Re6 {[%clk 0:00:05.8]} 36. Qxg5 {[%clk 0:00:13.4]}
36... Qc2 {[%clk 0:00:06]} 37. Qxg7# {[%clk 0:00:13.5]} 1-0

[Event "Late-Titled-Tuesday-Blitz-February-13-2024"]
[Site "Chess.com"]
[Date "2024.02.13"]
[Round "1"]
[White "VitaliyBernadskiy"]
[Black "zajka-molotok"]
[Result "1-0"]
[WhiteElo "2882"]
[BlackElo "2479"]
[TimeControl "180+1"]
[EndTime "14:07:16 PST"]
[Termination "VitaliyBernadskiy won on time"]

1. e3 {[%clk 0:03:00.9]} 1... e5 {[%clk 0:02:58.6]} 2. b3 {[%clk 0:03:00.4]}
2... d5 {[%clk 0:02:58.2]} 3. Bb2 {[%clk 0:03:00.6]} 3... Nd7 {[%clk 0:02:52.8]}
4. Nf3 {[%clk 0:02:59.7]} 4... Bd6 {[%clk 0:02:51.6]} 5. c4 {[%clk 0:02:59.5]}
5... c6 {[%clk 0:02:50.4]} 6. Be2 {[%clk 0:02:56.5]} 6... Ngf6 {[%clk 0:02:50]}
7. g4 {[%clk 0:02:55.4]} 7... e4 {[%clk 0:02:42.2]} 8. Nd4 {[%clk 0:02:54.1]}
8... Ne5 {[%clk 0:02:35.6]} 9. g5 {[%clk 0:02:44.1]} 9... Ng8 {[%clk 0:02:31.9]}
10. Rg1 {[%clk 0:02:35]} 10... Ne7 {[%clk 0:02:31.1]} 11. cxd5 {[%clk
0:02:29.5]} 11... cxd5 {[%clk 0:02:27]} 12. Nc3 {[%clk 0:02:25.6]} 12... a6
{[%clk 0:02:24.2]} 13. Qc2 {[%clk 0:02:10.4]} 13... b5 {[%clk 0:02:19.1]} 14. f4
{[%clk 0:01:57.5]} 14... exf3 {[%clk 0:02:16.8]} 15. Nxf3 {[%clk 0:01:57.6]}
15... Bf5 {[%clk 0:02:13.1]} 16. e4 {[%clk 0:01:55.3]} 16... dxe4 {[%clk
0:02:04.9]} 17. Nxe4 {[%clk 0:01:56.2]} 17... Nxf3+ {[%clk 0:01:52.5]} 18. Bxf3
{[%clk 0:01:57.1]} 18... Rc8 {[%clk 0:01:49.4]} 19. Bxg7 {[%clk 0:01:47.8]}
19... Qb6 {[%clk 0:01:22.6]} 20. Nxd6+ {[%clk 0:01:18]} 20... Qxd6 {[%clk
0:01:21.3]} 21. Qxc8+ {[%clk 0:01:15.4]} 21... Bxc8 {[%clk 0:01:09.2]} 22. Bxh8
{[%clk 0:01:16.3]} 22... Qc5 {[%clk 0:00:57.3]} 23. Rg2 {[%clk 0:00:59.3]} 23...
Bh3 {[%clk 0:00:47.2]} 24. Rf2 {[%clk 0:00:49.4]} 24... Ng6 {[%clk 0:00:40.1]}
25. Bf6 {[%clk 0:00:40.4]} 25... Nf4 {[%clk 0:00:38.3]} 26. Be4 {[%clk
0:00:38.7]} 26... Ne6 {[%clk 0:00:20.2]} 27. b4 {[%clk 0:00:25.1]} 27... Qc4
{[%clk 0:00:16.2]} 28. Re2 {[%clk 0:00:21.6]} 28... Qxb4 {[%clk 0:00:12.5]} 29.
Rc1 {[%clk 0:00:19]} 29... Kd7 {[%clk 0:00:09.7]} 30. Be5 {[%clk 0:00:17]} 30...
Qa3 {[%clk 0:00:07.2]} 31. Rc3 {[%clk 0:00:14]} 31... Qxa2 {[%clk 0:00:06]} 32.
Bc6+ {[%clk 0:00:12.3]} 32... Ke7 {[%clk 0:00:02]} 33. Rxh3 {[%clk 0:00:09.4]}
1-0

[Event "Late-Titled-Tuesday-Blitz-February-13-2024"]
[Site "Chess.com"]
[Date "2024.02.13"]
[Round "1"]
[White "ImportedItalianMaple"]
[Black "pfalcon1949"]
[Result "1-0"]
[WhiteElo "2532"]
[BlackElo "1950"]
[TimeControl "180+1"]
[EndTime "14:07:16 PST"]
[Termination "ImportedItalianMaple won on time"]

1. Nf3 {[%clk 0:02:59.6]} 1... Nf6 {[%clk 0:02:56.7]} 2. g3 {[%clk 0:03:00]}
2... d5 {[%clk 0:02:49.8]} 3. Bg2 {[%clk 0:03:00.2]} 3... c5 {[%clk 0:02:49.7]}
4. O-O {[%clk 0:03:00.3]} 4... h6 {[%clk 0:02:44.8]} 5. c4 {[%clk 0:02:52.2]}
5... d4 {[%clk 0:02:42.7]} 6. e3 {[%clk 0:02:49.7]} 6... Nc6 {[%clk 0:02:42]} 7.
d3 {[%clk 0:02:45.1]} 7... Bf5 {[%clk 0:02:39.8]} 8. exd4 {[%clk 0:02:19.4]}
8... cxd4 {[%clk 0:02:38.6]} 9. b4 {[%clk 0:02:19.1]} 9... e6 {[%clk 0:02:19.2]}
10. b5 {[%clk 0:02:17.2]} 10... Ne7 {[%clk 0:02:06.5]} 11. Bb2 {[%clk
0:02:07.3]} 11... Bg4 {[%clk 0:01:52.6]} 12. Qa4 {[%clk 0:02:00.1]} 12... Qb6
{[%clk 0:01:35.9]} 13. Bxd4 {[%clk 0:01:57.1]} 13... Qd8 {[%clk 0:01:32]} 14.
b6+ {[%clk 0:01:47.5]} 14... Nd7 {[%clk 0:01:28.4]} 15. bxa7 {[%clk 0:01:36.9]}
15... Nc6 {[%clk 0:01:26.5]} 16. Be3 {[%clk 0:01:33.1]} 16... Bc5 {[%clk
0:01:19.1]} 17. Bxc5 {[%clk 0:01:08]} 17... Nxc5 {[%clk 0:01:20]} 18. Qb5 {[%clk
0:01:07.9]} 18... Qd6 {[%clk 0:01:03.8]} 19. d4 {[%clk 0:01:02.9]} 19... Nd7
{[%clk 0:00:50.2]} 20. Ne5 {[%clk 0:00:46.1]} 20... Ndxe5 {[%clk 0:00:38.9]} 21.
dxe5 {[%clk 0:00:44.6]} 21... Qc7 {[%clk 0:00:36.9]} 22. Qc5 {[%clk 0:00:37.1]}
22... Rxa7 {[%clk 0:00:30.3]} 23. Nc3 {[%clk 0:00:37.2]} 23... Ra5 {[%clk
0:00:27.2]} 24. Nb5 {[%clk 0:00:37.1]} 24... Qe7 {[%clk 0:00:13.7]} 25. Bxc6+
{[%clk 0:00:31.4]} 25... bxc6 {[%clk 0:00:13.8]} 26. Nd6+ {[%clk 0:00:31.8]}
26... Kf8 {[%clk 0:00:12.7]} 27. Qxa5 {[%clk 0:00:31.8]} 27... g6 {[%clk
0:00:11.7]} 28. Kg2 {[%clk 0:00:26.8]} 28... Kg7 {[%clk 0:00:11.7]} 29. h3
{[%clk 0:00:27.2]} 29... Bf5 {[%clk 0:00:10]} 30. Nxf5+ {[%clk 0:00:26.5]} 30...
gxf5 {[%clk 0:00:09.9]} 31. Rfd1 {[%clk 0:00:25.6]} 31... Qg5 {[%clk 0:00:09.9]}
32. Qd2 {[%clk 0:00:24.3]} 32... Qg6 {[%clk 0:00:09.6]} 33. Qf4 {[%clk
0:00:23.4]} 33... Rg8 {[%clk 0:00:10]} 34. Rd7 {[%clk 0:00:22.6]} 34... Kh8
{[%clk 0:00:08.4]} 35. Rad1 {[%clk 0:00:23.1]} 35... Qg7 {[%clk 0:00:06.5]} 36.
Rc7 {[%clk 0:00:22.4]} 36... Qf8 {[%clk 0:00:02.2]} 37. Rdd7 {[%clk 0:00:22.2]}
37... Qa3 {[%clk 0:00:02.6]} 38. Rxf7 {[%clk 0:00:22.1]} 1-0

[Event "Late-Titled-Tuesday-Blitz-February-13-2024"]
[Site "Chess.com"]
[Date "2024.02.13"]
[Round "1"]
[White "GMKrikor"]
[Black "The_Straightforward_Rook"]
[Result "1-0"]
[WhiteElo "2848"]
[BlackElo "2448"]
[TimeControl "180+1"]
[EndTime "14:07:17 PST"]
[Termination "GMKrikor won by resignation"]

1. Nf3 {[%clk 0:03:00.9]} 1... d5 {[%clk 0:02:55.1]} 2. c4 {[%clk 0:03:00.5]}
2... c6 {[%clk 0:02:54.6]} 3. d4 {[%clk 0:03:00.4]} 3... Nf6 {[%clk 0:02:54.5]}
4. Nc3 {[%clk 0:03:00.6]} 4... e6 {[%clk 0:02:54]} 5. cxd5 {[%clk 0:03:00.7]}
5... exd5 {[%clk 0:02:52.9]} 6. Bf4 {[%clk 0:03:01.2]} 6... Bd6 {[%clk
0:02:51.2]} 7. Bxd6 {[%clk 0:03:01.3]} 7... Qxd6 {[%clk 0:02:52.1]} 8. e3 {[%clk
0:03:02.2]} 8... O-O {[%clk 0:02:52]} 9. Qb3 {[%clk 0:03:01.2]} 9... Re8 {[%clk
0:02:48.8]} 10. Bd3 {[%clk 0:03:01.2]} 10... Nbd7 {[%clk 0:02:45.9]} 11. O-O
{[%clk 0:03:00.6]} 11... Nf8 {[%clk 0:02:34.3]} 12. h3 {[%clk 0:02:56.2]} 12...
Ne4 {[%clk 0:02:32.7]} 13. Qc2 {[%clk 0:02:55.4]} 13... Nxc3 {[%clk 0:02:28.5]}
14. bxc3 {[%clk 0:02:55.3]} 14... Ng6 {[%clk 0:02:24.7]} 15. c4 {[%clk
0:02:52.7]} 15... dxc4 {[%clk 0:02:18.5]} 16. Bxc4 {[%clk 0:02:52.2]} 16... Be6
{[%clk 0:02:17.1]} 17. Rab1 {[%clk 0:02:48.2]} 17... b6 {[%clk 0:02:04.9]} 18.
a4 {[%clk 0:02:42.5]} 18... c5 {[%clk 0:02:02.9]} 19. Rfd1 {[%clk 0:02:38.2]}
19... cxd4 {[%clk 0:01:59.9]} 20. Nxd4 {[%clk 0:02:27.1]} 20... Bxc4 {[%clk
0:01:58.4]} 21. Qxc4 {[%clk 0:02:27.1]} 21... Rec8 {[%clk 0:01:57.2]} 22. Qe2
{[%clk 0:02:22.7]} 22... Qe5 {[%clk 0:01:46.4]} 23. Qa6 {[%clk 0:02:19]} 23...
h6 {[%clk 0:01:39.6]} 24. Rb5 {[%clk 0:02:06.7]} 24... Qe4 {[%clk 0:01:28.6]}
25. Nf3 {[%clk 0:01:38.9]} 25... Nh4 {[%clk 0:01:20.8]} 26. Nxh4 {[%clk
0:01:37.7]} 26... Qxh4 {[%clk 0:01:21.7]} 27. Rb2 {[%clk 0:01:28.4]} 27... Rc7
{[%clk 0:01:19]} 28. Rxb6 {[%clk 0:01:09.9]} 28... Rd8 {[%clk 0:01:17.6]} 29.
Rxd8+ {[%clk 0:01:05.8]} 29... Qxd8 {[%clk 0:01:18.5]} 30. Rb1 {[%clk
0:01:05.6]} 30... Qd2 {[%clk 0:01:15.9]} 31. Qb5 {[%clk 0:00:56.5]} 31... Rc1+
{[%clk 0:01:06.7]} 32. Rxc1 {[%clk 0:00:56]} 32... Qxc1+ {[%clk 0:01:07.6]} 33.
Kh2 {[%clk 0:00:56.8]} 33... Qc7+ {[%clk 0:01:08.2]} 34. g3 {[%clk 0:00:57.1]}
34... Qc2 {[%clk 0:01:06.1]} 35. Kg1 {[%clk 0:00:43.4]} 35... g6 {[%clk
0:00:48]} 36. a5 {[%clk 0:00:41.1]} 36... Kg7 {[%clk 0:00:42.6]} 37. Qe5+ {[%clk
0:00:39.9]} 37... Kh7 {[%clk 0:00:42.4]} 38. h4 {[%clk 0:00:36.6]} 38... Qb1+
{[%clk 0:00:38.2]} 39. Kg2 {[%clk 0:00:35.6]} 39... Qb7+ {[%clk 0:00:38.5]} 40.
Kh2 {[%clk 0:00:36.3]} 40... h5 {[%clk 0:00:37.3]} 41. Qf6 {[%clk 0:00:33.9]}
41... Kg8 {[%clk 0:00:36.5]} 42. a6 {[%clk 0:00:34.4]} 42... Qd7 {[%clk
0:00:34.6]} 43. Qf3 {[%clk 0:00:33.4]} 43... Qe6 {[%clk 0:00:34]} 44. Qa8+
{[%clk 0:00:30]} 44... Kg7 {[%clk 0:00:33.8]} 45. Qxa7 {[%clk 0:00:30.3]} 45...
Qf5 {[%clk 0:00:34.4]} 46. Qd4+ {[%clk 0:00:21]} 46... Kh7 {[%clk 0:00:32.8]}
47. e4 {[%clk 0:00:21.5]} 1-0